[Event "Titled Tuesday Blitz June 20 Late 2023"]
[White "Avalos Parra, Joao"]
[Black "Sreyas Payyappat"]
[WhiteFideId "3402541"]
[BlackFideId "46674969"]
[WhiteElo "2173"]
[BlackElo "2043"]
[Result "1/2-1/2"]
[Round "3"]
[TimeControl "180+2"]
[Date "2023.06.20"]
[WhiteClock "0:00:03"]
[BlackClock "0:00:07"]
[Board "118"]

1. d4 {[%clk 0:03:00]}  Nf6 {[%clk 0:02:57]} 2. c4 {[%clk 0:03:01]}  c5 {[%clk 0:02:57]} 3. d5 {[%clk 0:03:01]}  e6 {[%clk 0:02:56]} 4. Nc3 {[%clk 0:03:00]}  exd5 {[%clk 0:02:57]} 5. cxd5 {[%clk 0:03:01]}  d6 {[%clk 0:02:56]} 6. Nf3 {[%clk 0:03:02]}  g6 {[%clk 0:02:55]} 7. Nd2 {[%clk 0:03:02]}  Bg7 {[%clk 0:02:54]} 8. e4 {[%clk 0:03:03]}  O-O {[%clk 0:02:52]} 9. Be2 {[%clk 0:03:03]}  Re8 {[%clk 0:02:49]} 10. O-O {[%clk 0:03:02]}  a6 {[%clk 0:02:47]} 11. a4 {[%clk 0:03:02]}  Nbd7 {[%clk 0:02:46]} 12. Re1 {[%clk 0:03:03]}  Rb8 {[%clk 0:02:40]} 13. Ra3 {[%clk 0:02:56]}  Qc7 {[%clk 0:02:24]} 14. Qc2 {[%clk 0:02:56]}  Ne5 {[%clk 0:02:14]} 15. Nf1 {[%clk 0:02:49]}  Bd7 {[%clk 0:02:11]} 16. h3 {[%clk 0:02:47]}  b5 {[%clk 0:02:09]} 17. f4 {[%clk 0:02:41]}  b4 {[%clk 0:01:41]} 18. fxe5 {[%clk 0:02:35]}  Rxe5 {[%clk 0:01:35]} 19. Ra1 {[%clk 0:02:31]}  bxc3 {[%clk 0:01:34]} 20. bxc3 {[%clk 0:02:32]}  Rxe4 {[%clk 0:01:23]} 21. Ng3 {[%clk 0:02:28]}  Ree8 {[%clk 0:01:21]} 22. Bf4 {[%clk 0:02:22]}  Nxd5 {[%clk 0:01:16]} 23. Bd2 {[%clk 0:02:19]}  Bc6 {[%clk 0:00:35]} 24. Bf3 {[%clk 0:02:14]}  Rxe1+ {[%clk 0:00:18]} 25. Rxe1 {[%clk 0:02:15]}  Qd7 {[%clk 0:00:16]} 26. a5 {[%clk 0:02:11]}  Re8 {[%clk 0:00:13]} 27. Qd3 {[%clk 0:02:08]}  Rxe1+ {[%clk 0:00:08]} 28. Bxe1 {[%clk 0:02:09]}  Nf4 {[%clk 0:00:08]} 29. Qe3 {[%clk 0:01:30]}  Bxf3 {[%clk 0:00:06]} 30. Qxf3 {[%clk 0:01:30]}  Be5 {[%clk 0:00:06]} 31. Bd2 {[%clk 0:01:27]}  Ne6 {[%clk 0:00:03]} 32. Ne4 {[%clk 0:01:28]}  Kg7 {[%clk 0:00:02]} 33. h4 {[%clk 0:01:23]}  Qc6 {[%clk 0:00:02]} 34. Qe3 {[%clk 0:01:23]}  f5 {[%clk 0:00:02]} 35. Nf2 {[%clk 0:01:14]}  Nf4 {[%clk 0:00:01]} 36. Qf3 {[%clk 0:00:58]}  Qxf3 {[%clk 0:00:01]} 37. gxf3 {[%clk 0:00:59]}  Ne2+ {[%clk 0:00:02]} 38. Kf1 {[%clk 0:00:57]}  Nxc3 {[%clk 0:00:03]} 39. Nd3 {[%clk 0:00:58]}  Bf6 {[%clk 0:00:04]} 40. Bf4 {[%clk 0:00:58]}  Nb5 {[%clk 0:00:04]} 41. h5 {[%clk 0:00:56]}  c4 {[%clk 0:00:04]} 42. h6+ {[%clk 0:00:55]}  Kf7 {[%clk 0:00:05]} 43. Nb4 {[%clk 0:00:56]}  d5 {[%clk 0:00:05]} 44. Nxa6 {[%clk 0:00:55]}  c3 {[%clk 0:00:06]} 45. Nb4 {[%clk 0:00:55]}  d4 {[%clk 0:00:06]} 46. Ke2 {[%clk 0:00:55]}  Be7 {[%clk 0:00:07]} 47. Nc2 {[%clk 0:00:54]}  Bc5 {[%clk 0:00:08]} 48. a6 {[%clk 0:00:53]}  Ba7 {[%clk 0:00:08]} 49. Kd3 {[%clk 0:00:54]}  Ke6 {[%clk 0:00:08]} 50. Kc4 {[%clk 0:00:52]}  Nd6+ {[%clk 0:00:08]} 51. Kd3 {[%clk 0:00:36]}  Kd5 {[%clk 0:00:08]} 52. Bg5 {[%clk 0:00:33]}  Nb5 {[%clk 0:00:08]} 53. Bf6 {[%clk 0:00:33]}  Nc7 {[%clk 0:00:06]} 54. Nb4+ {[%clk 0:00:29]}  Kc5 {[%clk 0:00:07]} 55. Be7+ {[%clk 0:00:30]}  Kb5 {[%clk 0:00:07]} 56. Nc2 {[%clk 0:00:28]}  Nxa6 {[%clk 0:00:07]} 57. Nxd4+ {[%clk 0:00:20]}  Bxd4 {[%clk 0:00:08]} 58. Kxd4 {[%clk 0:00:20]}  c2 {[%clk 0:00:08]} 59. Ba3 {[%clk 0:00:21]}  Ka4 {[%clk 0:00:09]} 60. Bc1 {[%clk 0:00:21]}  Kb3 {[%clk 0:00:10]} 61. Ke5 {[%clk 0:00:21]}  Nb4 {[%clk 0:00:10]} 62. Kf6 {[%clk 0:00:20]}  Nd3 {[%clk 0:00:09]} 63. Bd2 {[%clk 0:00:21]}  c1=Q {[%clk 0:00:07]} 64. Bxc1 {[%clk 0:00:21]}  Nxc1 {[%clk 0:00:08]} 65. Kg7 {[%clk 0:00:21]}  g5 {[%clk 0:00:09]} 66. Kxh7 {[%clk 0:00:21]}  g4 {[%clk 0:00:10]} 67. fxg4 {[%clk 0:00:21]}  fxg4 {[%clk 0:00:10]} 68. Kg6 {[%clk 0:00:22]}  g3 {[%clk 0:00:11]} 69. h7 {[%clk 0:00:23]}  g2 {[%clk 0:00:12]} 70. h8=Q {[%clk 0:00:23]}  g1=Q+ {[%clk 0:00:13]} 71. Kf7 {[%clk 0:00:23]}  Qa7+ {[%clk 0:00:13]} 72. Kg6 {[%clk 0:00:23]}  Nd3 {[%clk 0:00:13]} 73. Qg8+ {[%clk 0:00:22]}  Kc2 {[%clk 0:00:12]} 74. Qc4+ {[%clk 0:00:21]}  Kd2 {[%clk 0:00:12]} 75. Qf7 {[%clk 0:00:19]}  Qg1+ {[%clk 0:00:13]} 76. Kh7 {[%clk 0:00:17]}  Qh2+ {[%clk 0:00:13]} 77. Kg8 {[%clk 0:00:17]}  Qg3+ {[%clk 0:00:13]} 78. Kf8 {[%clk 0:00:17]}  Qb8+ {[%clk 0:00:13]} 79. Qe8 {[%clk 0:00:17]}  Qf4+ {[%clk 0:00:13]} 80. Qf7 {[%clk 0:00:18]}  Qh4 {[%clk 0:00:13]} 81. Qe7 {[%clk 0:00:13]}  Qh8+ {[%clk 0:00:11]} 82. Kf7 {[%clk 0:00:11]}  Qh7+ {[%clk 0:00:12]} 83. Ke8 {[%clk 0:00:11]}  Qg8+ {[%clk 0:00:12]} 84. Qf8 {[%clk 0:00:11]}  Qa2 {[%clk 0:00:12]} 85. Qh6+ {[%clk 0:00:11]}  Kc2 {[%clk 0:00:11]} 86. Qc6+ {[%clk 0:00:12]}  Kd1 {[%clk 0:00:09]} 87. Qh1+ {[%clk 0:00:11]}  Ne1 {[%clk 0:00:09]} 88. Qh5+ {[%clk 0:00:11]}  Kc1 {[%clk 0:00:09]} 89. Qg5+ {[%clk 0:00:11]}  Kb1 {[%clk 0:00:09]} 90. Qf5+ {[%clk 0:00:09]}  Nc2 {[%clk 0:00:09]} 91. Qf1+ {[%clk 0:00:08]}  Kb2 {[%clk 0:00:10]} 92. Qb5+ {[%clk 0:00:09]}  Kc3 {[%clk 0:00:10]} 93. Qe5+ {[%clk 0:00:09]}  Kd3 {[%clk 0:00:09]} 94. Qf5+ {[%clk 0:00:09]}  Kd4 {[%clk 0:00:09]} 95. Qf6+ {[%clk 0:00:09]}  Ke4 {[%clk 0:00:09]} 96. Qg6+ {[%clk 0:00:09]}  Kf4 {[%clk 0:00:09]} 97. Qf6+ {[%clk 0:00:09]}  Kg3 {[%clk 0:00:09]} 98. Qg5+ {[%clk 0:00:09]}  Kf2 {[%clk 0:00:09]} 99. Qf4+ {[%clk 0:00:10]}  Ke2 {[%clk 0:00:09]} 100. Qe4+ {[%clk 0:00:10]}  Ne3 {[%clk 0:00:09]} 101. Qe7 {[%clk 0:00:08]}  Qa8+ {[%clk 0:00:08]} 102. Kf7 {[%clk 0:00:08]}  Qf3+ {[%clk 0:00:08]} 103. Ke8 {[%clk 0:00:08]}  Qh5+ {[%clk 0:00:08]} 104. Kd7 {[%clk 0:00:08]}  Kf3 {[%clk 0:00:06]} 105. Qf8+ {[%clk 0:00:07]}  Nf5 {[%clk 0:00:04]} 106. Qa3+ {[%clk 0:00:07]}  Kg4 {[%clk 0:00:05]} 107. Qb4+ {[%clk 0:00:06]}  Kg5 {[%clk 0:00:05]} 108. Qd2+ {[%clk 0:00:07]}  Kg6 {[%clk 0:00:06]} 109. Qg2+ {[%clk 0:00:07]}  Kf6 {[%clk 0:00:06]} 110. Qb2+ {[%clk 0:00:08]}  Kg5 {[%clk 0:00:06]} 111. Qg2+ {[%clk 0:00:08]}  Kf4 {[%clk 0:00:06]} 112. Qf2+ {[%clk 0:00:08]}  Ke4 {[%clk 0:00:07]} 113. Qc2+ {[%clk 0:00:08]}  Ke5 {[%clk 0:00:07]} 114. Qc5+ {[%clk 0:00:08]}  Kf4 {[%clk 0:00:07]} 115. Qc1+ {[%clk 0:00:08]}  Ne3 {[%clk 0:00:07]} 116. Qc7+ {[%clk 0:00:07]}  Kf3 {[%clk 0:00:07]} 117. Qc6+ {[%clk 0:00:07]}  Nd5 {[%clk 0:00:07]} 118. Qd6 {[%clk 0:00:04]}  Ke4 {[%clk 0:00:07]} 119. Qe6+ {[%clk 0:00:04]}  Kd4 {[%clk 0:00:08]} 120. Qe1 {[%clk 0:00:03]}  Qf7+ {[%clk 0:00:07]} 1/2-1/2


[Site "https://www.chess.com"]

[Event "Titled Tuesday Blitz June 20 Late 2023"]
[White "Todev, Simeon"]
[Black "O`Gorman, Tom"]
[WhiteFideId "2925133"]
[BlackFideId "2508249"]
[WhiteElo "1938"]
[BlackElo "2299"]
[Result "0-1"]
[Round "3"]
[TimeControl "180+2"]
[Date "2023.06.20"]
[WhiteClock "0:00:00"]
[BlackClock "0:00:19"]
[Board "120"]

1. e4 {[%clk 0:03:00]}  e5 {[%clk 0:02:56]} 2. Nf3 {[%clk 0:03:01]}  Nf6 {[%clk 0:02:55]} 3. d4 {[%clk 0:03:02]}  Nxe4 {[%clk 0:02:53]} 4. Nxe5 {[%clk 0:03:01]}  d6 {[%clk 0:02:32]} 5. Nf3 {[%clk 0:02:58]}  d5 {[%clk 0:02:31]} 6. Bd3 {[%clk 0:02:58]}  Bd6 {[%clk 0:02:30]} 7. O-O {[%clk 0:02:58]}  O-O {[%clk 0:02:31]} 8. c4 {[%clk 0:02:57]}  c6 {[%clk 0:02:31]} 9. Nc3 {[%clk 0:02:56]}  Nxc3 {[%clk 0:02:30]} 10. bxc3 {[%clk 0:02:56]}  dxc4 {[%clk 0:02:28]} 11. Bxc4 {[%clk 0:02:56]}  Bf5 {[%clk 0:02:27]} 12. Be3 {[%clk 0:02:56]}  Nd7 {[%clk 0:02:26]} 13. Bd3 {[%clk 0:02:56]}  Qf6 {[%clk 0:02:25]} 14. Bg5 {[%clk 0:02:53]}  Qg6 {[%clk 0:02:19]} 15. Nh4 {[%clk 0:02:51]}  Qxg5 {[%clk 0:02:20]} 16. Nxf5 {[%clk 0:02:51]}  Bc7 {[%clk 0:02:19]} 17. f4 {[%clk 0:02:50]}  Bxf4 {[%clk 0:02:12]} 18. h4 {[%clk 0:02:50]}  Be3+ {[%clk 0:02:10]} 19. Kh1 {[%clk 0:02:48]}  Qf6 {[%clk 0:02:06]} 20. Nxe3 {[%clk 0:02:47]}  Qxh4+ {[%clk 0:02:06]} 21. Kg1 {[%clk 0:02:48]}  Nf6 {[%clk 0:02:01]} 22. Nf5 {[%clk 0:02:44]}  Qg5 {[%clk 0:02:00]} 23. Qf3 {[%clk 0:02:37]}  Rfe8 {[%clk 0:02:00]} 24. Rae1 {[%clk 0:02:35]}  Qd2 {[%clk 0:01:56]} 25. Rxe8+ {[%clk 0:02:30]}  Rxe8 {[%clk 0:01:55]} 26. Rf2 {[%clk 0:02:22]}  Qxc3 {[%clk 0:01:44]} 27. Qg3 {[%clk 0:02:03]}  g6 {[%clk 0:01:36]} 28. Nh6+ {[%clk 0:01:59]}  Kg7 {[%clk 0:01:31]} 29. Nf5+ {[%clk 0:01:47]}  Kh8 {[%clk 0:01:29]} 30. Nd6 {[%clk 0:01:40]}  Re1+ {[%clk 0:01:13]} 31. Kh2 {[%clk 0:01:35]}  Qxd4 {[%clk 0:01:13]} 32. Nxf7+ {[%clk 0:01:32]}  Kg7 {[%clk 0:01:13]} 33. Ng5 {[%clk 0:01:28]}  Ng4+ {[%clk 0:01:09]} 34. Qxg4 {[%clk 0:01:12]}  Qxg4 {[%clk 0:01:10]} 35. Nh3 {[%clk 0:01:02]}  Re3 {[%clk 0:01:06]} 36. Bf1 {[%clk 0:00:56]}  Qg3+ {[%clk 0:01:05]} 37. Kg1 {[%clk 0:00:54]}  Re1 {[%clk 0:01:05]} 38. Rf3 {[%clk 0:00:53]}  Qe5 {[%clk 0:01:03]} 39. Nf4 {[%clk 0:00:48]}  Qd4+ {[%clk 0:00:59]} 40. Kh2 {[%clk 0:00:48]}  Qa1 {[%clk 0:00:58]} 41. Bc4 {[%clk 0:00:34]}  Rh1+ {[%clk 0:00:56]} 42. Kg3 {[%clk 0:00:34]}  Qe1+ {[%clk 0:00:56]} 43. Rf2 {[%clk 0:00:33]}  Qe5 {[%clk 0:00:51]} 44. Rf3 {[%clk 0:00:25]}  Rc1 {[%clk 0:00:38]} 45. Bd3 {[%clk 0:00:15]}  Rc3 {[%clk 0:00:31]} 46. Kf2 {[%clk 0:00:14]}  Qd4+ {[%clk 0:00:25]} 47. Kg3 {[%clk 0:00:12]}  Qd6 {[%clk 0:00:25]} 48. Kf2 {[%clk 0:00:09]}  Ra3 {[%clk 0:00:24]} 49. g3 {[%clk 0:00:01]}  Rxa2+ {[%clk 0:00:24]} 50. Kg1 {[%clk 0:00:01]}  Qd4+ {[%clk 0:00:19]} 51. Kh1 {[%clk 0:00:00]}  Ra1+ {[%clk 0:00:19]} 0-1


[Site "https://www.chess.com"]

[Event "Titled Tuesday Blitz June 20 Late 2023"]
[White "Brunner, Nicolas"]
[Black "Nathan, Nitish"]
[WhiteFideId "620246"]
[BlackFideId "30927870"]
[WhiteElo "2319"]
[BlackElo "2295"]
[Result "1-0"]
[Round "3"]
[TimeControl "180+2"]
[Date "2023.06.20"]
[WhiteClock "0:00:11"]
[BlackClock "0:01:04"]
[Board "123"]

1. Nf3 {[%clk 0:03:00]}  d5 {[%clk 0:02:58]} 2. g3 {[%clk 0:02:59]}  Bf5 {[%clk 0:02:58]} 3. Bg2 {[%clk 0:02:58]}  e6 {[%clk 0:02:59]} 4. c4 {[%clk 0:02:57]}  c6 {[%clk 0:02:58]} 5. Qb3 {[%clk 0:02:54]}  Qb6 {[%clk 0:02:57]} 6. d3 {[%clk 0:02:53]}  Nd7 {[%clk 0:02:57]} 7. Be3 {[%clk 0:02:41]}  Bc5 {[%clk 0:02:55]} 8. d4 {[%clk 0:02:34]}  Be7 {[%clk 0:02:50]} 9. c5 {[%clk 0:02:32]}  Qa6 {[%clk 0:02:49]} 10. Nc3 {[%clk 0:02:22]}  h6 {[%clk 0:02:44]} 11. Rc1 {[%clk 0:01:59]}  Ngf6 {[%clk 0:02:42]} 12. O-O {[%clk 0:01:58]}  O-O {[%clk 0:02:42]} 13. Rfd1 {[%clk 0:01:52]}  b6 {[%clk 0:02:40]} 14. Na4 {[%clk 0:01:46]}  bxc5 {[%clk 0:02:37]} 15. Nxc5 {[%clk 0:01:43]}  Nxc5 {[%clk 0:02:36]} 16. dxc5 {[%clk 0:01:43]}  Rfb8 {[%clk 0:02:36]} 17. Qa3 {[%clk 0:01:38]}  Qb7 {[%clk 0:02:29]} 18. b3 {[%clk 0:01:37]}  Nd7 {[%clk 0:02:25]} 19. Nd4 {[%clk 0:01:28]}  Bg6 {[%clk 0:02:21]} 20. Bh3 {[%clk 0:01:17]}  Bf6 {[%clk 0:02:14]} 21. b4 {[%clk 0:01:08]}  Bxd4 {[%clk 0:02:06]} 22. Rxd4 {[%clk 0:01:07]}  e5 {[%clk 0:02:05]} 23. Rh4 {[%clk 0:01:04]}  d4 {[%clk 0:02:01]} 24. Bd2 {[%clk 0:01:01]}  Nf6 {[%clk 0:02:00]} 25. Bg2 {[%clk 0:00:42]}  Re8 {[%clk 0:01:55]} 26. e3 {[%clk 0:00:39]}  dxe3 {[%clk 0:01:51]} 27. Bxe3 {[%clk 0:00:38]}  e4 {[%clk 0:01:50]} 28. Qb2 {[%clk 0:00:35]}  Nd5 {[%clk 0:01:47]} 29. Bd4 {[%clk 0:00:31]}  Qxb4 {[%clk 0:01:47]} 30. Bxg7 {[%clk 0:00:29]}  Qxb2 {[%clk 0:01:46]} 31. Bxb2 {[%clk 0:00:28]}  Rab8 {[%clk 0:01:46]} 32. Ba1 {[%clk 0:00:24]}  Nb4 {[%clk 0:01:41]} 33. Rxh6 {[%clk 0:00:23]}  Bh7 {[%clk 0:01:33]} 34. a3 {[%clk 0:00:14]}  Nd3 {[%clk 0:01:31]} 35. Rd1 {[%clk 0:00:13]}  f5 {[%clk 0:01:24]} 36. Rxc6 {[%clk 0:00:11]}  Rb3 {[%clk 0:01:21]} 37. Rc7 {[%clk 0:00:11]}  Nb2 {[%clk 0:01:08]} 38. Bxb2 {[%clk 0:00:09]}  Rxb2 {[%clk 0:01:09]} 39. Rdd7 {[%clk 0:00:09]}  Rb1+ {[%clk 0:01:08]} 40. Bf1 {[%clk 0:00:09]}  e3 {[%clk 0:01:09]} 41. Rg7+ {[%clk 0:00:08]}  Kh8 {[%clk 0:01:07]} 42. Rxh7+ {[%clk 0:00:09]}  Kg8 {[%clk 0:01:06]} 43. Rcg7+ {[%clk 0:00:09]}  Kf8 {[%clk 0:01:06]} 44. Rh8+ {[%clk 0:00:10]}  Kxg7 {[%clk 0:01:06]} 45. Rxe8 {[%clk 0:00:10]}  exf2+ {[%clk 0:01:07]} 46. Kxf2 {[%clk 0:00:11]}  Rc1 {[%clk 0:01:08]} 47. Re5 {[%clk 0:00:10]}  Rc2+ {[%clk 0:01:07]} 48. Kg1 {[%clk 0:00:10]}  Kf6 {[%clk 0:01:08]} 49. Rd5 {[%clk 0:00:10]}  Ke6 {[%clk 0:01:08]} 50. Rd6+ {[%clk 0:00:10]}  Ke5 {[%clk 0:01:09]} 51. Ra6 {[%clk 0:00:10]}  Rxc5 {[%clk 0:01:08]} 52. Rxa7 {[%clk 0:00:11]}  Rc1 {[%clk 0:01:08]} 53. a4 {[%clk 0:00:11]}  Ra1 {[%clk 0:01:08]} 54. a5 {[%clk 0:00:11]}  Ke4 {[%clk 0:01:07]} 55. a6 {[%clk 0:00:12]}  f4 {[%clk 0:01:06]} 56. gxf4 {[%clk 0:00:11]}  Kxf4 {[%clk 0:01:07]} 57. Rf7+ {[%clk 0:00:12]}  Kg4 {[%clk 0:01:06]} 58. a7 {[%clk 0:00:12]}  Kh4 {[%clk 0:01:06]} 59. Kf2 {[%clk 0:00:11]}  Ra2+ {[%clk 0:01:04]} 60. Be2 {[%clk 0:00:12]}  Kh3 {[%clk 0:01:04]} 61. Rh7# {[%clk 0:00:11]} 1-0


[Site "https://www.chess.com"]

[Event "Titled Tuesday Blitz June 20 Late 2023"]
[White "Boder, Jan"]
[Black "FoxOnTheRun97"]
[WhiteFideId "16243226"]
[WhiteElo "2241"]
[BlackElo "2529"]
[Result "0-1"]
[Round "3"]
[TimeControl "180+2"]
[Date "2023.06.20"]
[WhiteClock "0:00:09"]
[BlackClock "0:00:08"]
[Board "126"]

1. b3 {[%clk 0:02:49]}  Nf6 {[%clk 0:02:56]} 2. Bb2 {[%clk 0:02:50]}  d5 {[%clk 0:02:56]} 3. e3 {[%clk 0:02:50]}  Bf5 {[%clk 0:02:56]} 4. d4 {[%clk 0:02:48]}  e6 {[%clk 0:02:56]} 5. Bd3 {[%clk 0:02:46]}  Bd6 {[%clk 0:02:43]} 6. Nf3 {[%clk 0:02:43]}  Nbd7 {[%clk 0:02:39]} 7. O-O {[%clk 0:02:41]}  O-O {[%clk 0:02:38]} 8. Ne5 {[%clk 0:02:41]}  a5 {[%clk 0:02:21]} 9. f4 {[%clk 0:02:12]}  a4 {[%clk 0:02:04]} 10. bxa4 {[%clk 0:01:49]}  Bxd3 {[%clk 0:01:55]} 11. cxd3 {[%clk 0:01:42]}  Nb6 {[%clk 0:01:46]} 12. Nc3 {[%clk 0:01:40]}  Qe8 {[%clk 0:01:36]} 13. Nb5 {[%clk 0:01:27]}  Nxa4 {[%clk 0:01:35]} 14. Qb3 {[%clk 0:01:22]}  Nxb2 {[%clk 0:01:28]} 15. Qxb2 {[%clk 0:01:22]}  Qe7 {[%clk 0:00:37]} 16. a4 {[%clk 0:01:20]}  Rfc8 {[%clk 0:00:23]} 17. Rfb1 {[%clk 0:01:14]}  b6 {[%clk 0:00:16]} 18. Rc1 {[%clk 0:01:05]}  Bxe5 {[%clk 0:00:12]} 19. fxe5 {[%clk 0:00:59]}  Ng4 {[%clk 0:00:12]} 20. Qe2 {[%clk 0:00:57]}  Nh6 {[%clk 0:00:10]} 21. e4 {[%clk 0:00:48]}  dxe4 {[%clk 0:00:09]} 22. dxe4 {[%clk 0:00:47]}  c5 {[%clk 0:00:08]} 23. Nd6 {[%clk 0:00:46]}  Rd8 {[%clk 0:00:08]} 24. dxc5 {[%clk 0:00:46]}  bxc5 {[%clk 0:00:08]} 25. Rxc5 {[%clk 0:00:46]}  Qa7 {[%clk 0:00:07]} 26. Rc1 {[%clk 0:00:37]}  Qxa4 {[%clk 0:00:07]} 27. Qf2 {[%clk 0:00:25]}  Qa7 {[%clk 0:00:04]} 28. h3 {[%clk 0:00:23]}  Rf8 {[%clk 0:00:03]} 29. g4 {[%clk 0:00:22]}  Rad8 {[%clk 0:00:03]} 30. g5 {[%clk 0:00:20]}  Nf5 {[%clk 0:00:03]} 31. exf5 {[%clk 0:00:19]}  exf5 {[%clk 0:00:04]} 32. Rc7 {[%clk 0:00:19]}  Qa3 {[%clk 0:00:03]} 33. R1c3 {[%clk 0:00:12]}  Qa1+ {[%clk 0:00:03]} 34. Kg2 {[%clk 0:00:12]}  Qd1 {[%clk 0:00:03]} 35. Rc8 {[%clk 0:00:08]}  Qd5+ {[%clk 0:00:03]} 36. Qf3 {[%clk 0:00:06]}  Qxe5 {[%clk 0:00:03]} 37. Nxf5 {[%clk 0:00:02]}  Rxc8 {[%clk 0:00:02]} 38. Rxc8 {[%clk 0:00:03]}  Rxc8 {[%clk 0:00:01]} 39. Ne7+ {[%clk 0:00:02]}  Qxe7 {[%clk 0:00:01]} 40. h4 {[%clk 0:00:03]}  Qf8 {[%clk 0:00:02]} 41. Kh3 {[%clk 0:00:04]}  Re8 {[%clk 0:00:03]} 42. Qg4 {[%clk 0:00:04]}  Re6 {[%clk 0:00:03]} 43. Qf4 {[%clk 0:00:05]}  g6 {[%clk 0:00:04]} 44. h5 {[%clk 0:00:05]}  Qe7 {[%clk 0:00:04]} 45. h6 {[%clk 0:00:06]}  Qd7 {[%clk 0:00:04]} 46. Qb8+ {[%clk 0:00:06]}  Re8+ {[%clk 0:00:05]} 47. Kh4 {[%clk 0:00:06]}  Rxb8 {[%clk 0:00:05]} 48. Kg3 {[%clk 0:00:06]}  Rb4 {[%clk 0:00:05]} 49. Kf3 {[%clk 0:00:07]}  Qa4 {[%clk 0:00:06]} 50. Ke3 {[%clk 0:00:08]}  Rb3+ {[%clk 0:00:07]} 51. Kd2 {[%clk 0:00:09]}  Qa2+ {[%clk 0:00:07]} 52. Kd1 {[%clk 0:00:09]}  Rb1# {[%clk 0:00:08]} 0-1


[Site "https://www.chess.com"]

[Event "Titled Tuesday Blitz June 20 Late 2023"]
[White "Barrionuevo, Pablo"]
[Black "Dushyant Sharma"]
[WhiteFideId "110566"]
[BlackFideId "25065130"]
[WhiteElo "2212"]
[BlackElo "2198"]
[Result "0-1"]
[Round "3"]
[TimeControl "180+2"]
[Date "2023.06.20"]
[WhiteClock "0:00:00"]
[BlackClock "0:00:59"]
[Board "127"]

1. d4 {[%clk 0:03:00]}  d5 {[%clk 0:03:00]} 2. Nf3 {[%clk 0:03:00]}  e6 {[%clk 0:03:00]} 3. c3 {[%clk 0:02:58]}  f5 {[%clk 0:02:59]} 4. Bf4 {[%clk 0:02:56]}  Bd6 {[%clk 0:02:59]} 5. Bxd6 {[%clk 0:02:55]}  Qxd6 {[%clk 0:03:00]} 6. Ne5 {[%clk 0:02:50]}  Nf6 {[%clk 0:03:00]} 7. Nd2 {[%clk 0:02:50]}  c5 {[%clk 0:02:55]} 8. e3 {[%clk 0:02:49]}  Nc6 {[%clk 0:02:54]} 9. Bb5 {[%clk 0:02:49]}  O-O {[%clk 0:02:54]} 10. Bxc6 {[%clk 0:02:49]}  bxc6 {[%clk 0:02:55]} 11. O-O {[%clk 0:02:48]}  cxd4 {[%clk 0:02:51]} 12. exd4 {[%clk 0:02:46]}  c5 {[%clk 0:02:51]} 13. Ndf3 {[%clk 0:02:36]}  Ne4 {[%clk 0:02:41]} 14. dxc5 {[%clk 0:02:35]}  Qxc5 {[%clk 0:02:37]} 15. Qd4 {[%clk 0:02:35]}  Qd6 {[%clk 0:02:34]} 16. Rfd1 {[%clk 0:02:31]}  Rb8 {[%clk 0:02:32]} 17. b3 {[%clk 0:02:30]}  Qc7 {[%clk 0:01:52]} 18. Rac1 {[%clk 0:02:28]}  Ba6 {[%clk 0:01:51]} 19. h4 {[%clk 0:02:21]}  Be2 {[%clk 0:01:46]} 20. Re1 {[%clk 0:02:20]}  Bxf3 {[%clk 0:01:44]} 21. Nxf3 {[%clk 0:02:21]}  Rfd8 {[%clk 0:01:40]} 22. Ne5 {[%clk 0:02:16]}  Rbc8 {[%clk 0:01:36]} 23. Re3 {[%clk 0:02:09]}  Nd6 {[%clk 0:01:31]} 24. a4 {[%clk 0:02:01]}  Qb6 {[%clk 0:01:25]} 25. Nf3 {[%clk 0:01:54]}  Ne4 {[%clk 0:01:18]} 26. Qxb6 {[%clk 0:01:48]}  axb6 {[%clk 0:01:17]} 27. Nd4 {[%clk 0:01:49]}  Kf7 {[%clk 0:00:58]} 28. f3 {[%clk 0:00:00]}  Nc5 {[%clk 0:00:59]} 0-1


[Site "https://www.chess.com"]

[Event "Titled Tuesday Blitz June 20 Late 2023"]
[White "Krsnik Cohar, Ivan Vihor"]
[Black "disciplinedbrat"]
[WhiteFideId "14520044"]
[WhiteElo "2414"]
[BlackElo "2248"]
[Result "1-0"]
[Round "3"]
[TimeControl "180+2"]
[Date "2023.06.20"]
[WhiteClock "0:01:42"]
[BlackClock "0:00:36"]
[Board "129"]

1. e4 {[%clk 0:03:00]}  g6 {[%clk 0:02:59]} 2. Nf3 {[%clk 0:03:00]}  Bg7 {[%clk 0:02:58]} 3. Bc4 {[%clk 0:03:01]}  d6 {[%clk 0:02:58]} 4. Nc3 {[%clk 0:03:01]}  e5 {[%clk 0:02:51]} 5. O-O {[%clk 0:03:01]}  Nf6 {[%clk 0:02:50]} 6. d4 {[%clk 0:03:00]}  exd4 {[%clk 0:02:48]} 7. Nxd4 {[%clk 0:03:01]}  O-O {[%clk 0:02:48]} 8. Bg5 {[%clk 0:03:01]}  c6 {[%clk 0:02:47]} 9. Bb3 {[%clk 0:02:40]}  Qc7 {[%clk 0:02:44]} 10. Qf3 {[%clk 0:02:32]}  Bg4 {[%clk 0:02:38]} 11. Qf4 {[%clk 0:02:18]}  Nbd7 {[%clk 0:02:34]} 12. h3 {[%clk 0:02:17]}  Nh5 {[%clk 0:02:14]} 13. Qd2 {[%clk 0:02:03]}  Bxd4 {[%clk 0:01:55]} 14. hxg4 {[%clk 0:01:46]}  Bxc3 {[%clk 0:01:45]} 15. Qxc3 {[%clk 0:01:46]}  Ng7 {[%clk 0:01:32]} 16. Bh6 {[%clk 0:01:46]}  Ne6 {[%clk 0:00:36]} 17. Bxe6 {[%clk 0:01:42]} 1-0


[Site "https://www.chess.com"]

[Event "Titled Tuesday Blitz June 20 Late 2023"]
[White "Ismagilov, Damir"]
[Black "Quirke, Jeffrey"]
[WhiteFideId "34199982"]
[BlackFideId "2013029"]
[WhiteElo "2104"]
[BlackElo "2212"]
[Result "1-0"]
[Round "3"]
[TimeControl "180+2"]
[Date "2023.06.20"]
[WhiteClock "0:00:37"]
[BlackClock "0:00:00"]
[Board "132"]

1. e4 {[%clk 0:03:00]}  Nf6 {[%clk 0:02:59]} 2. e5 {[%clk 0:03:00]}  Nd5 {[%clk 0:02:59]} 3. d4 {[%clk 0:03:01]}  d6 {[%clk 0:02:58]} 4. c4 {[%clk 0:03:01]}  Nb6 {[%clk 0:02:58]} 5. f4 {[%clk 0:03:02]}  dxe5 {[%clk 0:02:51]} 6. fxe5 {[%clk 0:03:03]}  Bf5 {[%clk 0:02:48]} 7. Nc3 {[%clk 0:03:02]}  e6 {[%clk 0:02:38]} 8. Be3 {[%clk 0:02:57]}  Nc6 {[%clk 0:02:35]} 9. Nf3 {[%clk 0:02:48]}  Bg4 {[%clk 0:02:34]} 10. Be2 {[%clk 0:02:42]}  Bxf3 {[%clk 0:02:34]} 11. gxf3 {[%clk 0:02:36]}  Bb4 {[%clk 0:02:34]} 12. O-O {[%clk 0:02:33]}  Qh4 {[%clk 0:02:13]} 13. Ne4 {[%clk 0:02:31]}  O-O-O {[%clk 0:02:07]} 14. c5 {[%clk 0:01:53]}  Nd5 {[%clk 0:01:50]} 15. Bg5 {[%clk 0:01:48]}  Qh3 {[%clk 0:01:48]} 16. a3 {[%clk 0:01:41]}  f6 {[%clk 0:01:23]} 17. Bc1 {[%clk 0:01:29]}  fxe5 {[%clk 0:01:03]} 18. axb4 {[%clk 0:01:27]}  Ndxb4 {[%clk 0:00:40]} 19. Be3 {[%clk 0:01:19]}  Nd5 {[%clk 0:00:39]} 20. Bg5 {[%clk 0:01:12]}  Nxd4 {[%clk 0:00:28]} 21. Rxa7 {[%clk 0:00:42]}  Kd7 {[%clk 0:00:21]} 22. Qa4+ {[%clk 0:00:39]}  Nc6 {[%clk 0:00:05]} 23. Rxb7 {[%clk 0:00:38]}  Rdf8 {[%clk 0:00:00]} 24. Bb5 {[%clk 0:00:37]} 1-0


[Site "https://www.chess.com"]